[Event "*** Titled Tuesday Blitz"]
[Site "Chess.com"]
[Date "2021.03.16"]
[Round "7"]
[White "atwalcb"]
[Black "davigator"]
[Result "1/2-1/2"]
[WhiteElo "2545"]
[BlackElo "2425"]
[TimeControl "180+1"]
[EndTime "11:13:56 PDT"]
[Termination "Game drawn by repetition"]

1. d4 {[%clk 0:03:00.9]} 1... Nf6 {[%clk 0:02:57.9]} 2. Bg5 {[%clk 0:03:00.9]}
2... e6 {[%clk 0:02:57.4]} 3. e4 {[%clk 0:03:00.1]} 3... d5 {[%clk 0:02:56.5]}
4. Nc3 {[%clk 0:02:54.6]} 4... dxe4 {[%clk 0:02:56.6]} 5. Nxe4 {[%clk 0:02:54]}
5... Be7 {[%clk 0:02:57]} 6. Bxf6 {[%clk 0:02:46.3]} 6... gxf6 {[%clk
0:02:55.5]} 7. c3 {[%clk 0:02:43.7]} 7... f5 {[%clk 0:02:54.3]} 8. Nd2 {[%clk
0:02:43.9]} 8... c5 {[%clk 0:02:53.7]} 9. Ngf3 {[%clk 0:02:43.4]} 9... Nc6
{[%clk 0:02:52.8]} 10. Bb5 {[%clk 0:02:42.6]} 10... Bd7 {[%clk 0:02:51.9]} 11.
O-O {[%clk 0:02:41.2]} 11... cxd4 {[%clk 0:02:50.9]} 12. Bxc6 {[%clk 0:02:36.4]}
12... Bxc6 {[%clk 0:02:50.6]} 13. Nxd4 {[%clk 0:02:36.6]} 13... Qd5 {[%clk
0:02:45.8]} 14. Nxc6 {[%clk 0:02:35.7]} 14... Qxc6 {[%clk 0:02:45.6]} 15. Qf3
{[%clk 0:02:33]} 15... Rc8 {[%clk 0:02:40.7]} 16. Qxc6+ {[%clk 0:02:28.5]} 16...
Rxc6 {[%clk 0:02:40.5]} 17. Rad1 {[%clk 0:02:27.8]} 17... h5 {[%clk 0:02:39.2]}
18. Nf3 {[%clk 0:02:24.3]} 18... Bf6 {[%clk 0:02:35.1]} 19. Rd2 {[%clk
0:02:19.9]} 19... Rc7 {[%clk 0:02:28.6]} 20. Rfd1 {[%clk 0:02:17]} 20... Ke7
{[%clk 0:02:27.9]} 21. Nd4 {[%clk 0:02:13.6]} 21... a6 {[%clk 0:02:25.6]} 22. h3
{[%clk 0:02:07.1]} 22... Rg8 {[%clk 0:02:22.7]} 23. Nf3 {[%clk 0:01:58.8]} 23...
Rgc8 {[%clk 0:02:20.4]} 24. Kf1 {[%clk 0:01:58.5]} 24... Ke8 {[%clk 0:02:17.3]}
25. Rd3 {[%clk 0:01:57.3]} 25... Ke7 {[%clk 0:02:14.6]} 26. Ne1 {[%clk
0:01:54.1]} 26... Ke8 {[%clk 0:02:12]} 27. Ke2 {[%clk 0:01:53.1]} 27... Rc4
{[%clk 0:02:10.5]} 28. Nf3 {[%clk 0:01:51]} 28... Re4+ {[%clk 0:02:09.2]} 29.
Re3 {[%clk 0:01:50.1]} 29... Rec4 {[%clk 0:02:07.6]} 30. Red3 {[%clk 0:01:49]}
30... Re4+ {[%clk 0:02:06]} 31. Re3 {[%clk 0:01:45.6]} 31... Rec4 {[%clk
0:02:05.9]} 32. Red3 {[%clk 0:01:43.2]} 1/2-1/2

[Event "*** Titled Tuesday Blitz"]
[Site "Chess.com"]
[Date "2021.03.16"]
[Round "7"]
[White "jefferyx"]
[Black "Gabix_94"]
[Result "1-0"]
[WhiteElo "2997"]
[BlackElo "2810"]
[TimeControl "180+1"]
[EndTime "11:14:19 PDT"]
[Termination "jefferyx won by resignation"]

1. e4 {[%clk 0:03:00.9]} 1... c5 {[%clk 0:02:58.9]} 2. Nc3 {[%clk 0:02:59.7]}
2... Nc6 {[%clk 0:02:58.6]} 3. Nge2 {[%clk 0:02:55.8]} 3... e6 {[%clk 0:02:56]}
4. d4 {[%clk 0:02:55.8]} 4... cxd4 {[%clk 0:02:55.8]} 5. Nxd4 {[%clk 0:02:56.7]}
5... Qc7 {[%clk 0:02:56]} 6. g3 {[%clk 0:02:56.5]} 6... a6 {[%clk 0:02:55.4]} 7.
Bg2 {[%clk 0:02:56.2]} 7... d6 {[%clk 0:02:49.1]} 8. Nxc6 {[%clk 0:02:50.7]}
8... bxc6 {[%clk 0:02:49]} 9. O-O {[%clk 0:02:51.4]} 9... Nf6 {[%clk 0:02:49.2]}
10. b3 {[%clk 0:02:49.7]} 10... e5 {[%clk 0:02:46.8]} 11. f4 {[%clk 0:02:44.5]}
11... Be7 {[%clk 0:02:45.7]} 12. f5 {[%clk 0:02:35.4]} 12... O-O {[%clk
0:02:41.8]} 13. Be3 {[%clk 0:02:35.3]} 13... Bb7 {[%clk 0:02:39.1]} 14. Na4
{[%clk 0:02:30.1]} 14... d5 {[%clk 0:02:31.1]} 15. Bb6 {[%clk 0:02:30.1]} 15...
Qd7 {[%clk 0:02:21.8]} 16. Qe2 {[%clk 0:02:26.1]} 16... c5 {[%clk 0:02:02.7]}
17. exd5 {[%clk 0:02:16.9]} 17... Bxd5 {[%clk 0:02:00.1]} 18. Rad1 {[%clk
0:02:16.4]} 18... Qc6 {[%clk 0:01:58.2]} 19. Rxd5 {[%clk 0:02:14.7]} 19... Nxd5
{[%clk 0:01:59.1]} 20. c4 {[%clk 0:02:14.1]} 20... Rae8 {[%clk 0:01:47.2]} 21.
Bxd5 {[%clk 0:02:13.5]} 21... Qc8 {[%clk 0:01:45.2]} 22. Qe3 {[%clk 0:02:05.7]}
22... e4 {[%clk 0:01:44.1]} 23. Nxc5 {[%clk 0:02:02.8]} 23... Bd6 {[%clk
0:01:38.5]} 24. Nxe4 {[%clk 0:02:02.3]} 24... Be5 {[%clk 0:01:36.3]} 25. f6
{[%clk 0:02:02.1]} 25... Qh3 {[%clk 0:01:31.6]} 26. fxg7 {[%clk 0:01:53.3]}
26... Bxg7 {[%clk 0:01:32.5]} 27. Rxf7 {[%clk 0:01:51.7]} 27... Rxf7 {[%clk
0:01:29.7]} 28. Bxf7+ {[%clk 0:01:51.3]} 28... Kxf7 {[%clk 0:01:30]} 29. Ng5+
{[%clk 0:01:51.5]} 29... Kg6 {[%clk 0:01:30.5]} 30. Nxh3 {[%clk 0:01:48.6]}
30... Rxe3 {[%clk 0:01:31.4]} 31. Bxe3 {[%clk 0:01:49.1]} 1-0

[Event "*** Titled Tuesday Blitz"]
[Site "Chess.com"]
[Date "2021.03.16"]
[Round "7"]
[White "Tekushka"]
[Black "DonBroca"]
[Result "1-0"]
[WhiteElo "2409"]
[BlackElo "2204"]
[TimeControl "180+1"]
[EndTime "11:14:34 PDT"]
[Termination "Tekushka won by resignation"]

1. e4 {[%clk 0:03:00.9]} 1... c5 {[%clk 0:02:59.1]} 2. Nf3 {[%clk 0:03:00.8]}
2... d6 {[%clk 0:02:59.4]} 3. d4 {[%clk 0:03:01]} 3... cxd4 {[%clk 0:03:00.3]}
4. Nxd4 {[%clk 0:03:01.3]} 4... Nf6 {[%clk 0:03:01.2]} 5. Nc3 {[%clk 0:03:01.6]}
5... g6 {[%clk 0:03:02.1]} 6. f3 {[%clk 0:02:59.9]} 6... Bg7 {[%clk 0:03:02.1]}
7. Be3 {[%clk 0:03:00.6]} 7... Nc6 {[%clk 0:03:02.4]} 8. Qd2 {[%clk 0:03:01]}
8... O-O {[%clk 0:03:02]} 9. O-O-O {[%clk 0:03:01.2]} 9... d5 {[%clk 0:03:02.4]}
10. exd5 {[%clk 0:03:01]} 10... Nxd5 {[%clk 0:03:03.3]} 11. Nxc6 {[%clk
0:03:01.5]} 11... bxc6 {[%clk 0:03:03]} 12. Bd4 {[%clk 0:03:02.1]} 12... Bxd4
{[%clk 0:03:02]} 13. Qxd4 {[%clk 0:03:01.2]} 13... Qb6 {[%clk 0:03:02.9]} 14.
Na4 {[%clk 0:03:00.1]} 14... Qc7 {[%clk 0:03:03.2]} 15. h4 {[%clk 0:02:48.1]}
15... e5 {[%clk 0:02:59.3]} 16. Qc5 {[%clk 0:02:43]} 16... Rb8 {[%clk
0:02:36.9]} 17. Rxd5 {[%clk 0:02:35.3]} 17... e4 {[%clk 0:02:34.6]} 18. Rd6
{[%clk 0:02:01.9]} 18... exf3 {[%clk 0:02:26]} 19. gxf3 {[%clk 0:02:01.4]} 19...
Bf5 {[%clk 0:02:24.8]} 20. Bc4 {[%clk 0:01:47.9]} 20... a5 {[%clk 0:02:09]} 21.
h5 {[%clk 0:01:44.5]} 21... Rb4 {[%clk 0:02:06.9]} 22. b3 {[%clk 0:01:39.3]}
22... Rfb8 {[%clk 0:01:44.1]} 23. hxg6 {[%clk 0:01:37.6]} 23... Bxg6 {[%clk
0:01:45]} 24. Qe5 {[%clk 0:01:28.4]} 24... Rxc4 {[%clk 0:01:32.3]} 25. Rxg6+
{[%clk 0:01:23.4]} 1-0

[Event "*** Titled Tuesday Blitz"]
[Site "Chess.com"]
[Date "2021.03.16"]
[Round "7"]
[White "FairChess_on_YouTube"]
[Black "BahadirOzen"]
[Result "1-0"]
[WhiteElo "2980"]
[BlackElo "2779"]
[TimeControl "180+1"]
[EndTime "11:14:41 PDT"]
[Termination "FairChess_on_YouTube won by resignation"]

1. e4 {[%clk 0:03:00.9]} 1... g6 {[%clk 0:03:00]} 2. d4 {[%clk 0:03:00.5]} 2...
Bg7 {[%clk 0:03:00.5]} 3. Nf3 {[%clk 0:03:00.9]} 3... d6 {[%clk 0:03:00.9]} 4.
Bc4 {[%clk 0:03:00.9]} 4... e6 {[%clk 0:03:00.1]} 5. O-O {[%clk 0:02:59.9]} 5...
Ne7 {[%clk 0:02:59.8]} 6. Bb3 {[%clk 0:02:59.8]} 6... O-O {[%clk 0:02:57.2]} 7.
c3 {[%clk 0:02:59.9]} 7... b6 {[%clk 0:02:53.2]} 8. Re1 {[%clk 0:02:59.6]} 8...
Bb7 {[%clk 0:02:53.3]} 9. Nbd2 {[%clk 0:02:59.5]} 9... c5 {[%clk 0:02:50.5]} 10.
Nf1 {[%clk 0:02:58.5]} 10... Nbc6 {[%clk 0:02:48.2]} 11. Ng3 {[%clk 0:02:58]}
11... Qc7 {[%clk 0:02:42.3]} 12. Be3 {[%clk 0:02:56.7]} 12... Na5 {[%clk
0:02:36.1]} 13. Qd2 {[%clk 0:02:39.3]} 13... Nxb3 {[%clk 0:02:13.2]} 14. axb3
{[%clk 0:02:40.2]} 14... cxd4 {[%clk 0:02:12]} 15. cxd4 {[%clk 0:02:30.2]} 15...
Rfc8 {[%clk 0:02:10.8]} 16. Bh6 {[%clk 0:02:17.2]} 16... Qc2 {[%clk 0:01:45.9]}
17. Qf4 {[%clk 0:02:16.2]} 17... Bxh6 {[%clk 0:01:25.9]} 18. Qxh6 {[%clk
0:02:17.1]} 18... f6 {[%clk 0:01:25.1]} 19. Qf4 {[%clk 0:02:05.7]} 19... Qxb3
{[%clk 0:01:00]} 20. Qxf6 {[%clk 0:01:59.4]} 20... Rc7 {[%clk 0:00:41.3]} 21.
Ng5 {[%clk 0:01:58.5]} 1-0

[Event "*** Titled Tuesday Blitz"]
[Site "Chess.com"]
[Date "2021.03.16"]
[Round "7"]
[White "pavelalexandru07"]
[Black "Babas"]
[Result "0-1"]
[WhiteElo "2288"]
[BlackElo "2410"]
[TimeControl "180+1"]
[EndTime "11:14:43 PDT"]
[Termination "Babas won by resignation"]

1. e4 {[%clk 0:02:53.1]} 1... e5 {[%clk 0:02:59.6]} 2. Nf3 {[%clk 0:02:52.5]}
2... Nf6 {[%clk 0:02:58.9]} 3. Nxe5 {[%clk 0:02:49]} 3... d6 {[%clk 0:02:57.5]}
4. Nf3 {[%clk 0:02:49.1]} 4... Nxe4 {[%clk 0:02:55.8]} 5. Nc3 {[%clk 0:02:49.7]}
5... Nxc3 {[%clk 0:02:54.1]} 6. dxc3 {[%clk 0:02:50.6]} 6... Be7 {[%clk
0:02:52.9]} 7. Bd3 {[%clk 0:02:50.9]} 7... Nd7 {[%clk 0:02:52.8]} 8. Be3 {[%clk
0:02:49.1]} 8... Nf6 {[%clk 0:02:53.2]} 9. Qd2 {[%clk 0:02:47.2]} 9... O-O
{[%clk 0:02:53.1]} 10. O-O-O {[%clk 0:02:46.5]} 10... c5 {[%clk 0:02:53]} 11. h3
{[%clk 0:02:42.8]} 11... b5 {[%clk 0:02:41.9]} 12. Bxb5 {[%clk 0:02:31.2]} 12...
Be6 {[%clk 0:02:40.8]} 13. a3 {[%clk 0:02:15.7]} 13... Rb8 {[%clk 0:02:31.1]}
14. Bd3 {[%clk 0:02:00.5]} 14... c4 {[%clk 0:02:14.1]} 15. Be2 {[%clk
0:01:54.4]} 15... Qa5 {[%clk 0:02:12.8]} 16. Nd4 {[%clk 0:01:37.1]} 16... Rxb2
{[%clk 0:02:07]} 17. Kxb2 {[%clk 0:01:12.3]} 17... Rb8+ {[%clk 0:02:04.8]} 18.
Ka2 {[%clk 0:01:12.6]} 18... Ne4 {[%clk 0:01:51.8]} 19. Qc1 {[%clk 0:00:50.3]}
19... Nxc3+ {[%clk 0:01:47.1]} 20. Ka1 {[%clk 0:00:50]} 20... Rb1+ {[%clk
0:01:47.4]} 0-1

[Event "*** Titled Tuesday Blitz"]
[Site "Chess.com"]
[Date "2021.03.16"]
[Round "7"]
[White "RamyresCoelho"]
[Black "kubal123"]
[Result "1-0"]
[WhiteElo "2094"]
[BlackElo "2244"]
[TimeControl "180+1"]
[EndTime "11:15:22 PDT"]
[Termination "RamyresCoelho won by resignation"]

1. e4 {[%clk 0:02:59.1]} 1... c6 {[%clk 0:02:59.9]} 2. d4 {[%clk 0:02:58.6]}
2... d5 {[%clk 0:03:00]} 3. Nc3 {[%clk 0:02:58.8]} 3... dxe4 {[%clk 0:02:59.9]}
4. Nxe4 {[%clk 0:02:59.7]} 4... Nf6 {[%clk 0:03:00.2]} 5. Nxf6+ {[%clk
0:02:59.9]} 5... exf6 {[%clk 0:03:01.1]} 6. Nf3 {[%clk 0:03:00.8]} 6... Bd6
{[%clk 0:03:01.5]} 7. Bd3 {[%clk 0:03:00.4]} 7... O-O {[%clk 0:03:02]} 8. Be3
{[%clk 0:03:00.4]} 8... Re8 {[%clk 0:03:01.8]} 9. Qd2 {[%clk 0:03:00.7]} 9...
Nd7 {[%clk 0:03:00.8]} 10. O-O-O {[%clk 0:03:00.4]} 10... Nf8 {[%clk 0:03:00.4]}
11. Bf4 {[%clk 0:02:58.3]} 11... Be6 {[%clk 0:02:59.5]} 12. Bxd6 {[%clk
0:02:57.4]} 12... Qxd6 {[%clk 0:02:59.1]} 13. c4 {[%clk 0:02:55.9]} 13... b5
{[%clk 0:02:50.1]} 14. c5 {[%clk 0:02:48.2]} 14... Qd5 {[%clk 0:02:38.4]} 15.
Bb1 {[%clk 0:02:47.2]} 15... Bg4 {[%clk 0:02:22.2]} 16. Qd3 {[%clk 0:02:38.5]}
16... Rad8 {[%clk 0:01:56.1]} 17. h3 {[%clk 0:02:35.4]} 17... Bxf3 {[%clk
0:01:53.5]} 18. gxf3 {[%clk 0:02:36.3]} 18... Qh5 {[%clk 0:01:20.4]} 19. Rhg1
{[%clk 0:02:31.1]} 19... Ne6 {[%clk 0:01:17.5]} 20. Qc3 {[%clk 0:01:44.9]} 20...
Nf4 {[%clk 0:01:11.2]} 21. Bd3 {[%clk 0:01:17.7]} 21... Qxf3 {[%clk 0:00:54.1]}
22. Bxh7+ {[%clk 0:01:16.4]} 1-0

[Event "*** Titled Tuesday Blitz"]
[Site "Chess.com"]
[Date "2021.03.16"]
[Round "7"]
[White "Maddie"]
[Black "Andrakhanova"]
[Result "1-0"]
[WhiteElo "2068"]
[BlackElo "2221"]
[TimeControl "180+1"]
[EndTime "11:15:23 PDT"]
[Termination "Maddie won by checkmate"]

1. d4 {[%clk 0:03:00.9]} 1... d5 {[%clk 0:02:59.1]} 2. Nf3 {[%clk 0:03:00.3]}
2... e6 {[%clk 0:02:59.4]} 3. e3 {[%clk 0:02:59.7]} 3... c6 {[%clk 0:02:59.3]}
4. Bd3 {[%clk 0:02:58.9]} 4... Nf6 {[%clk 0:02:59.5]} 5. Nbd2 {[%clk 0:02:54.4]}
5... Nbd7 {[%clk 0:02:59.5]} 6. Ne5 {[%clk 0:02:53.6]} 6... Bd6 {[%clk
0:02:59.1]} 7. f4 {[%clk 0:02:52.8]} 7... Qc7 {[%clk 0:02:57]} 8. O-O {[%clk
0:02:51.8]} 8... b6 {[%clk 0:02:56]} 9. c3 {[%clk 0:02:25.5]} 9... Bb7 {[%clk
0:02:55.2]} 10. Ndf3 {[%clk 0:02:12.5]} 10... c5 {[%clk 0:02:47]} 11. Nxd7
{[%clk 0:02:09.7]} 11... Nxd7 {[%clk 0:02:41.3]} 12. Ne5 {[%clk 0:02:04.1]}
12... g6 {[%clk 0:02:34]} 13. Bb5 {[%clk 0:01:51.9]} 13... Bxe5 {[%clk
0:02:29.9]} 14. fxe5 {[%clk 0:01:49]} 14... a5 {[%clk 0:02:21.5]} 15. Qf3 {[%clk
0:01:19.8]} 15... Rf8 {[%clk 0:02:20.6]} 16. Bd2 {[%clk 0:00:54.4]} 16... Ba6
{[%clk 0:02:19.9]} 17. Bxa6 {[%clk 0:00:45.7]} 17... Rxa6 {[%clk 0:02:20.8]} 18.
e4 {[%clk 0:00:43.1]} 18... dxe4 {[%clk 0:02:17.2]} 19. Qxe4 {[%clk 0:00:42.5]}
19... b5 {[%clk 0:02:13.4]} 20. Bh6 {[%clk 0:00:39.9]} 20... Rg8 {[%clk
0:02:10.2]} 21. Qf3 {[%clk 0:00:28.1]} 21... Nb6 {[%clk 0:02:06.9]} 22. Qf2
{[%clk 0:00:24.9]} 22... cxd4 {[%clk 0:02:00.9]} 23. cxd4 {[%clk 0:00:25.8]}
23... Nd5 {[%clk 0:01:56.7]} 24. Rac1 {[%clk 0:00:25.7]} 24... Rc6 {[%clk
0:01:56.8]} 25. Rxc6 {[%clk 0:00:24.4]} 25... Qxc6 {[%clk 0:01:57.7]} 26. Qxf7+
{[%clk 0:00:24.1]} 26... Kd8 {[%clk 0:01:51.5]} 27. Qxg8+ {[%clk 0:00:25]} 27...
Ke7 {[%clk 0:01:51.1]} 28. Rf7# {[%clk 0:00:23.6]} 1-0

[Event "*** Titled Tuesday Blitz"]
[Site "Chess.com"]
[Date "2021.03.16"]
[Round "7"]
[White "ErikRonka"]
[Black "Buffy7"]
[Result "0-1"]
[WhiteElo "2432"]
[BlackElo "2622"]
[TimeControl "180+1"]
[EndTime "11:15:45 PDT"]
[Termination "Buffy7 won by resignation"]

1. d4 {[%clk 0:02:51.1]} 1... Nf6 {[%clk 0:03:00]} 2. Nf3 {[%clk 0:02:50.4]}
2... e6 {[%clk 0:03:00.9]} 3. g3 {[%clk 0:02:46.8]} 3... b6 {[%clk 0:03:01.8]}
4. Bg2 {[%clk 0:02:46.9]} 4... Bb7 {[%clk 0:03:02.7]} 5. O-O {[%clk 0:02:47.4]}
5... Be7 {[%clk 0:03:03.6]} 6. c4 {[%clk 0:02:47.9]} 6... O-O {[%clk 0:03:04.1]}
7. Ne1 {[%clk 0:02:48]} 7... Bxg2 {[%clk 0:03:03.4]} 8. Nxg2 {[%clk 0:02:48.9]}
8... c5 {[%clk 0:03:04.1]} 9. d5 {[%clk 0:02:43]} 9... exd5 {[%clk 0:03:05]} 10.
cxd5 {[%clk 0:02:43.9]} 10... d6 {[%clk 0:03:05.6]} 11. Nc3 {[%clk 0:02:42.8]}
11... Re8 {[%clk 0:03:06.1]} 12. e4 {[%clk 0:02:39.8]} 12... Bf8 {[%clk
0:03:05.7]} 13. f3 {[%clk 0:02:36.7]} 13... a6 {[%clk 0:03:04.8]} 14. a4 {[%clk
0:02:36.3]} 14... Nbd7 {[%clk 0:03:04.9]} 15. Bf4 {[%clk 0:02:34.2]} 15... Nh5
{[%clk 0:03:04.3]} 16. Be3 {[%clk 0:02:34.1]} 16... Nhf6 {[%clk 0:03:04.4]} 17.
Bf4 {[%clk 0:02:33.8]} 17... Rb8 {[%clk 0:03:03.7]} 18. Qd2 {[%clk 0:02:30.4]}
18... c4 {[%clk 0:03:00.3]} 19. Rab1 {[%clk 0:01:42.4]} 19... Nc5 {[%clk
0:02:58.3]} 20. b4 {[%clk 0:01:41.4]} 20... cxb3 {[%clk 0:02:57.8]} 21. Be3
{[%clk 0:01:38.7]} 21... Nfd7 {[%clk 0:02:54.5]} 22. Nf4 {[%clk 0:01:31]} 22...
Ne5 {[%clk 0:02:50.4]} 23. Nfe2 {[%clk 0:01:21.4]} 23... Nc4 {[%clk 0:02:37.9]}
24. Qd4 {[%clk 0:01:07.5]} 24... Na3 {[%clk 0:02:36.9]} 25. Rb2 {[%clk
0:01:00.8]} 25... b5 {[%clk 0:02:35.8]} 26. axb5 {[%clk 0:00:47.1]} 26... axb5
{[%clk 0:02:36.7]} 27. Bf2 {[%clk 0:00:19.1]} 27... b4 {[%clk 0:02:35.5]} 28.
Nd1 {[%clk 0:00:17.7]} 28... Be7 {[%clk 0:02:19]} 29. Ne3 {[%clk 0:00:17.7]}
29... Bf6 {[%clk 0:02:18.2]} 30. Qd2 {[%clk 0:00:17.8]} 30... Bxb2 {[%clk
0:02:13.2]} 31. Qxb2 {[%clk 0:00:18.7]} 31... Qa5 {[%clk 0:02:11.3]} 32. Nf5
{[%clk 0:00:18.6]} 32... f6 {[%clk 0:02:09.8]} 33. Nxd6 {[%clk 0:00:18.6]} 33...
Nd3 {[%clk 0:02:09.5]} 34. Qd4 {[%clk 0:00:18]} 34... Nxf2 {[%clk 0:02:08.3]}
35. Nxe8 {[%clk 0:00:17.7]} 35... Rxe8 {[%clk 0:02:08.4]} 36. Rxf2 {[%clk
0:00:17.7]} 36... Nc2 {[%clk 0:02:08.7]} 37. Qb2 {[%clk 0:00:17.1]} 37... Qa2
{[%clk 0:02:07.7]} 38. Qd4 {[%clk 0:00:09.3]} 0-1

[Event "*** Titled Tuesday Blitz"]
[Site "Chess.com"]
[Date "2021.03.16"]
[Round "7"]
[White "TheCairnTerrier"]
[Black "frequentblunders"]
[Result "1-0"]
[WhiteElo "2158"]
[BlackElo "2070"]
[TimeControl "180+1"]
[EndTime "11:15:47 PDT"]
[Termination "TheCairnTerrier won by resignation"]

1. e4 {[%clk 0:03:00.9]} 1... e6 {[%clk 0:02:59.3]} 2. d4 {[%clk 0:03:00.5]}
2... c5 {[%clk 0:02:59.8]} 3. d5 {[%clk 0:02:58.6]} 3... Nf6 {[%clk 0:02:59.8]}
4. Nc3 {[%clk 0:02:56.4]} 4... d6 {[%clk 0:03:00.2]} 5. Nf3 {[%clk 0:02:48.3]}
5... e5 {[%clk 0:02:58.1]} 6. Nd2 {[%clk 0:02:48]} 6... g6 {[%clk 0:02:47.4]} 7.
Be2 {[%clk 0:02:34.1]} 7... Bg7 {[%clk 0:02:46.8]} 8. O-O {[%clk 0:02:20.8]}
8... O-O {[%clk 0:02:43.9]} 9. a4 {[%clk 0:02:19.2]} 9... Nbd7 {[%clk
0:02:31.6]} 10. a5 {[%clk 0:02:01.8]} 10... Qe7 {[%clk 0:02:24]} 11. Nc4 {[%clk
0:01:57.4]} 11... Ne8 {[%clk 0:02:04.2]} 12. f3 {[%clk 0:01:33.9]} 12... f5
{[%clk 0:02:00.3]} 13. exf5 {[%clk 0:01:27.8]} 13... gxf5 {[%clk 0:01:58.4]} 14.
Be3 {[%clk 0:01:28]} 14... Nef6 {[%clk 0:01:43.8]} 15. Bg5 {[%clk 0:01:27.5]}
15... h6 {[%clk 0:01:37.6]} 16. Bh4 {[%clk 0:01:27.2]} 16... Re8 {[%clk
0:01:31.7]} 17. Nb5 {[%clk 0:00:57.9]} 17... Nh5 {[%clk 0:00:36.2]} 18. Bxe7
{[%clk 0:00:55.8]} 1-0

[Event "*** Titled Tuesday Blitz"]
[Site "Chess.com"]
[Date "2021.03.16"]
[Round "7"]
[White "hypert"]
[Black "fabianvivasz"]
[Result "1-0"]
[WhiteElo "2574"]
[BlackElo "2388"]
[TimeControl "180+1"]
[EndTime "11:16:09 PDT"]
[Termination "hypert won on time"]

1. e3 {[%clk 0:03:00.9]} 1... c5 {[%clk 0:02:56.7]} 2. d4 {[%clk 0:02:59.7]}
2... Nf6 {[%clk 0:02:52.2]} 3. Nf3 {[%clk 0:02:56.9]} 3... g6 {[%clk 0:02:42.3]}
4. dxc5 {[%clk 0:02:53.7]} 4... a5 {[%clk 0:02:28.7]} 5. Nbd2 {[%clk 0:02:52.4]}
5... Qc7 {[%clk 0:02:17.1]} 6. Bd3 {[%clk 0:02:41.8]} 6... Na6 {[%clk
0:02:15.1]} 7. O-O {[%clk 0:02:33.3]} 7... Nxc5 {[%clk 0:02:14.5]} 8. Bb5 {[%clk
0:02:32.9]} 8... Bg7 {[%clk 0:02:12.4]} 9. Rb1 {[%clk 0:02:23.8]} 9... O-O
{[%clk 0:02:09.3]} 10. b3 {[%clk 0:02:20.4]} 10... Nfe4 {[%clk 0:02:05.8]} 11.
Bb2 {[%clk 0:02:14.4]} 11... Bxb2 {[%clk 0:01:28.6]} 12. Nxe4 {[%clk 0:02:14.8]}
12... Nxe4 {[%clk 0:01:25.7]} 13. Rxb2 {[%clk 0:02:12.1]} 13... Nc3 {[%clk
0:00:59]} 14. Qd3 {[%clk 0:02:11.4]} 14... d5 {[%clk 0:00:56.7]} 15. a4 {[%clk
0:02:00.1]} 15... Bf5 {[%clk 0:00:53.3]} 16. Qd4 {[%clk 0:02:00]} 16... Bd7
{[%clk 0:00:46.1]} 17. Bd3 {[%clk 0:01:39]} 17... f6 {[%clk 0:00:46.1]} 18. Qh4
{[%clk 0:01:33.7]} 18... e5 {[%clk 0:00:43.3]} 19. e4 {[%clk 0:01:26]} 19...
dxe4 {[%clk 0:00:39.2]} 20. Bxe4 {[%clk 0:01:26]} 20... f5 {[%clk 0:00:36.8]}
21. Ng5 {[%clk 0:01:22.5]} 21... Bc8 {[%clk 0:00:11.8]} 22. Bd3 {[%clk
0:01:19.4]} 22... Qg7 {[%clk 0:00:03.4]} 23. Qc4+ {[%clk 0:01:15.9]} 23... Kh8
{[%clk 0:00:01.8]} 24. Qxc3 {[%clk 0:01:15.8]} 1-0

[Event "*** Titled Tuesday Blitz"]
[Site "Chess.com"]
[Date "2021.03.16"]
[Round "7"]
[White "1977Ivan"]
[Black "Konavets"]
[Result "0-1"]
[WhiteElo "2803"]
[BlackElo "2943"]
[TimeControl "180+1"]
[EndTime "11:16:15 PDT"]
[Termination "Konavets won by resignation"]

1. e4 {[%clk 0:02:58.9]} 1... c6 {[%clk 0:02:59.5]} 2. d4 {[%clk 0:02:57.8]}
2... d5 {[%clk 0:03:00.2]} 3. e5 {[%clk 0:02:58.4]} 3... Bf5 {[%clk 0:03:00]} 4.
h4 {[%clk 0:02:58.8]} 4... Qb6 {[%clk 0:03:00.1]} 5. Ne2 {[%clk 0:02:55.6]} 5...
h5 {[%clk 0:02:59.5]} 6. a4 {[%clk 0:02:50]} 6... e6 {[%clk 0:02:59.5]} 7. a5
{[%clk 0:02:48]} 7... Qc7 {[%clk 0:02:59.7]} 8. Ng3 {[%clk 0:02:46]} 8... Bg6
{[%clk 0:02:59.4]} 9. Be2 {[%clk 0:02:45.8]} 9... c5 {[%clk 0:02:56.2]} 10. Bb5+
{[%clk 0:02:28.9]} 10... Nc6 {[%clk 0:02:55.2]} 11. a6 {[%clk 0:02:25.4]} 11...
b6 {[%clk 0:02:55.5]} 12. c4 {[%clk 0:01:59.2]} 12... O-O-O {[%clk 0:02:55.5]}
13. Bg5 {[%clk 0:01:51.6]} 13... Nxd4 {[%clk 0:02:48.5]} 14. O-O {[%clk
0:01:35.3]} 14... Be7 {[%clk 0:02:40.5]} 15. Bxe7 {[%clk 0:01:19.8]} 15... Nxe7
{[%clk 0:02:41.4]} 16. Nc3 {[%clk 0:01:19.9]} 16... Qxe5 {[%clk 0:02:36.6]} 17.
cxd5 {[%clk 0:01:12.5]} 17... Nxd5 {[%clk 0:02:36.2]} 18. Bc4 {[%clk 0:01:07]}
18... Nf4 {[%clk 0:02:22.2]} 19. Qe1 {[%clk 0:01:01.5]} 19... Qxe1 {[%clk
0:02:19.8]} 20. Raxe1 {[%clk 0:01:02.4]} 20... Bd3 {[%clk 0:02:14.8]} 21. Bxd3
{[%clk 0:01:00.9]} 21... Nxd3 {[%clk 0:02:15.7]} 22. Re3 {[%clk 0:01:00.6]}
22... Nxb2 {[%clk 0:02:15.6]} 23. Nge4 {[%clk 0:00:58.4]} 23... Nc4 {[%clk
0:02:15.5]} 24. Rg3 {[%clk 0:00:57.2]} 24... g6 {[%clk 0:02:15.2]} 25. Ng5
{[%clk 0:00:55.6]} 25... Rd7 {[%clk 0:02:15.7]} 26. Re1 {[%clk 0:00:53.2]} 26...
b5 {[%clk 0:02:15.6]} 27. Nce4 {[%clk 0:00:52.3]} 27... Rc7 {[%clk 0:02:15.2]}
28. Kh2 {[%clk 0:00:43.5]} 28... Rd8 {[%clk 0:02:13.4]} 29. Rc3 {[%clk
0:00:31.9]} 29... Rd5 {[%clk 0:02:13.3]} 30. f3 {[%clk 0:00:30.8]} 30... Re5
{[%clk 0:02:02.8]} 31. Rb1 {[%clk 0:00:30.5]} 31... f5 {[%clk 0:02:00.5]} 32.
Rxc4 {[%clk 0:00:28.4]} 32... fxe4 {[%clk 0:01:56.4]} 33. Rxd4 {[%clk
0:00:17.9]} 33... cxd4 {[%clk 0:01:54]} 34. Nxe4 {[%clk 0:00:18.8]} 34... Rd5
{[%clk 0:01:49.9]} 35. Kg3 {[%clk 0:00:16.6]} 35... d3 {[%clk 0:01:49.8]} 36.
Rb2 {[%clk 0:00:10.5]} 36... Rc2 {[%clk 0:01:49]} 37. Rb1 {[%clk 0:00:08.9]}
37... d2 {[%clk 0:01:49.4]} 38. Rd1 {[%clk 0:00:09.4]} 38... Rc1 {[%clk
0:01:49.9]} 39. Rxd2 {[%clk 0:00:09.6]} 39... Rxd2 {[%clk 0:01:50.2]} 40. Nxd2
{[%clk 0:00:10.5]} 40... b4 {[%clk 0:01:51.1]} 41. Kf4 {[%clk 0:00:09.9]} 41...
Rc3 {[%clk 0:01:50.7]} 42. Ke4 {[%clk 0:00:09.6]} 42... Ra3 {[%clk 0:01:50.6]}
43. Nc4 {[%clk 0:00:08.3]} 43... Rxa6 {[%clk 0:01:50.6]} 44. Kd4 {[%clk
0:00:08.5]} 44... b3 {[%clk 0:01:50.3]} 0-1